[Event "Titled Tuesday Blitz August 08 Early 2023"]
[White "ATM622"]
[Black "Matlakov, Maxim"]
[BlackFideId "4168003"]
[WhiteElo "2503"]
[BlackElo "2986"]
[Result "0-1"]
[Round "1"]
[TimeControl "180+1"]
[Date "2023.08.08"]
[WhiteClock "0:01:15"]
[BlackClock "0:01:06"]
[Board "23"]

1. d4 {[%clk 0:02:59]}  Nf6 {[%clk 0:02:59]} 2. c4 {[%clk 0:02:59]}  e6 {[%clk 0:02:59]} 3. g3 {[%clk 0:02:56]}  c5 {[%clk 0:02:58]} 4. d5 {[%clk 0:02:56]}  exd5 {[%clk 0:02:59]} 5. cxd5 {[%clk 0:02:57]}  d6 {[%clk 0:02:59]} 6. Bg2 {[%clk 0:02:55]}  g6 {[%clk 0:03:00]} 7. Nf3 {[%clk 0:02:56]}  Bg7 {[%clk 0:03:00]} 8. O-O {[%clk 0:02:56]}  O-O {[%clk 0:03:01]} 9. Nc3 {[%clk 0:02:57]}  Re8 {[%clk 0:03:01]} 10. Nd2 {[%clk 0:02:55]}  a6 {[%clk 0:02:56]} 11. a4 {[%clk 0:02:54]}  Nbd7 {[%clk 0:02:56]} 12. Nc4 {[%clk 0:02:53]}  Ne5 {[%clk 0:02:55]} 13. Nxe5 {[%clk 0:02:53]}  Rxe5 {[%clk 0:02:55]} 14. e4 {[%clk 0:02:53]}  Re8 {[%clk 0:02:54]} 15. Re1 {[%clk 0:02:52]}  Rb8 {[%clk 0:02:48]} 16. a5 {[%clk 0:02:51]}  b5 {[%clk 0:02:48]} 17. axb6 {[%clk 0:02:52]}  Rxb6 {[%clk 0:02:48]} 18. Qc2 {[%clk 0:02:47]}  Rb4 {[%clk 0:02:42]} 19. Bd2 {[%clk 0:02:36]}  Ng4 {[%clk 0:02:38]} 20. Na4 {[%clk 0:02:30]}  Bd4 {[%clk 0:02:18]} 21. Re2 {[%clk 0:02:21]}  Rb8 {[%clk 0:02:08]} 22. Bc3 {[%clk 0:02:18]}  Bd7 {[%clk 0:02:08]} 23. h3 {[%clk 0:02:07]}  Ne5 {[%clk 0:01:59]} 24. b3 {[%clk 0:01:44]}  Qf6 {[%clk 0:01:51]} 25. Rd1 {[%clk 0:01:39]}  Nf3+ {[%clk 0:01:21]} 26. Bxf3 {[%clk 0:01:30]}  Qxf3 {[%clk 0:01:22]} 27. Qd3 {[%clk 0:01:24]}  Qxd3 {[%clk 0:01:16]} 28. Rxd3 {[%clk 0:01:23]}  Bb5 {[%clk 0:01:13]} 29. Bxd4 {[%clk 0:01:24]}  Bxd3 {[%clk 0:01:12]} 30. Rd2 {[%clk 0:01:22]}  Bxe4 {[%clk 0:01:09]} 31. Bf6 {[%clk 0:01:18]}  Rxb3 {[%clk 0:01:08]} 32. f3 {[%clk 0:01:15]}  Rxf3 {[%clk 0:01:06]} 0-1


[Site "https://www.chess.com"]

[Event "Titled Tuesday Blitz August 08 Early 2023"]
[White "Van Foreest, Jorden"]
[Black "Perske, Thore"]
[WhiteFideId "1039784"]
[BlackFideId "12902195"]
[WhiteElo "2983"]
[BlackElo "2501"]
[Result "1-0"]
[Round "1"]
[TimeControl "180+1"]
[Date "2023.08.08"]
[WhiteClock "0:01:28"]
[BlackClock "0:00:51"]
[Board "24"]

1. Nf3 {[%clk 0:02:58]}  d5 {[%clk 0:03:00]} 2. d4 {[%clk 0:02:56]}  Nf6 {[%clk 0:03:00]} 3. e3 {[%clk 0:02:57]}  Bf5 {[%clk 0:02:59]} 4. c4 {[%clk 0:02:55]}  c6 {[%clk 0:03:00]} 5. Nc3 {[%clk 0:02:53]}  e6 {[%clk 0:03:00]} 6. Be2 {[%clk 0:02:52]}  h6 {[%clk 0:02:57]} 7. Bd3 {[%clk 0:02:53]}  Bxd3 {[%clk 0:02:51]} 8. Qxd3 {[%clk 0:02:53]}  Nbd7 {[%clk 0:02:47]} 9. O-O {[%clk 0:02:53]}  Bd6 {[%clk 0:02:46]} 10. e4 {[%clk 0:02:49]}  dxe4 {[%clk 0:02:45]} 11. Nxe4 {[%clk 0:02:50]}  Nxe4 {[%clk 0:02:46]} 12. Qxe4 {[%clk 0:02:51]}  O-O {[%clk 0:02:44]} 13. Rd1 {[%clk 0:02:50]}  Qa5 {[%clk 0:02:38]} 14. b3 {[%clk 0:02:47]}  Rfe8 {[%clk 0:02:33]} 15. Bb2 {[%clk 0:02:47]}  Rad8 {[%clk 0:02:29]} 16. a3 {[%clk 0:02:44]}  Qh5 {[%clk 0:02:24]} 17. b4 {[%clk 0:02:38]}  Nf6 {[%clk 0:02:23]} 18. Qe2 {[%clk 0:02:37]}  a6 {[%clk 0:02:02]} 19. h3 {[%clk 0:02:36]}  Qg6 {[%clk 0:01:57]} 20. Rd3 {[%clk 0:02:34]}  Qe4 {[%clk 0:01:52]} 21. Re3 {[%clk 0:02:31]}  Qf5 {[%clk 0:01:52]} 22. Rd1 {[%clk 0:02:29]}  Bb8 {[%clk 0:01:51]} 23. Re1 {[%clk 0:01:59]}  Bf4 {[%clk 0:01:48]} 24. Rd3 {[%clk 0:01:59]}  Bb8 {[%clk 0:01:48]} 25. g4 {[%clk 0:01:35]}  Qf4 {[%clk 0:01:45]} 26. Bc1 {[%clk 0:01:34]}  Qc7 {[%clk 0:01:45]} 27. g5 {[%clk 0:01:33]}  Nh5 {[%clk 0:01:13]} 28. Ne5 {[%clk 0:01:32]}  g6 {[%clk 0:01:08]} 29. gxh6 {[%clk 0:01:32]}  Qe7 {[%clk 0:01:04]} 30. Qg4 {[%clk 0:01:29]}  Bxe5 {[%clk 0:00:59]} 31. Rxe5 {[%clk 0:01:29]}  Kh7 {[%clk 0:00:51]} 32. Rxh5 {[%clk 0:01:28]} 1-0


[Site "https://www.chess.com"]

[Event "Titled Tuesday Blitz August 08 Early 2023"]
[White "Droin, Augustin"]
[Black "Puranik, Abhimanyu"]
[WhiteFideId "45105987"]
[BlackFideId "5061245"]
[WhiteElo "2500"]
[BlackElo "2979"]
[Result "0-1"]
[Round "1"]
[TimeControl "180+1"]
[Date "2023.08.08"]
[WhiteClock "0:00:13"]
[BlackClock "0:01:07"]
[Board "25"]

1. e4 {[%clk 0:03:00]}  e6 {[%clk 0:02:57]} 2. d4 {[%clk 0:02:59]}  d5 {[%clk 0:02:58]} 3. exd5 {[%clk 0:03:00]}  exd5 {[%clk 0:02:58]} 4. Nf3 {[%clk 0:03:01]}  Nc6 {[%clk 0:02:56]} 5. Bd3 {[%clk 0:03:00]}  Bg4 {[%clk 0:02:55]} 6. O-O {[%clk 0:02:58]}  Nf6 {[%clk 0:02:54]} 7. c3 {[%clk 0:02:54]}  Qd7 {[%clk 0:02:53]} 8. Nbd2 {[%clk 0:02:51]}  O-O-O {[%clk 0:02:53]} 9. b4 {[%clk 0:02:51]}  Bd6 {[%clk 0:02:50]} 10. b5 {[%clk 0:02:50]}  Ne7 {[%clk 0:02:49]} 11. a4 {[%clk 0:01:34]}  Ng6 {[%clk 0:02:43]} 12. Re1 {[%clk 0:01:33]}  Nf4 {[%clk 0:02:36]} 13. Bf1 {[%clk 0:01:32]}  Rhe8 {[%clk 0:02:36]} 14. Rxe8 {[%clk 0:01:25]}  Rxe8 {[%clk 0:02:36]} 15. a5 {[%clk 0:01:14]}  Ne4 {[%clk 0:02:27]} 16. b6 {[%clk 0:01:10]}  a6 {[%clk 0:02:21]} 17. Qb3 {[%clk 0:00:43]}  Nxd2 {[%clk 0:01:47]} 18. Bxd2 {[%clk 0:00:44]}  Nh3+ {[%clk 0:01:30]} 19. gxh3 {[%clk 0:00:32]}  Bxf3 {[%clk 0:01:30]} 20. c4 {[%clk 0:00:21]}  Qf5 {[%clk 0:01:24]} 21. Qd3 {[%clk 0:00:20]}  Re4 {[%clk 0:01:08]} 22. Bg2 {[%clk 0:00:14]}  Bxg2 {[%clk 0:01:07]} 23. Kxg2 {[%clk 0:00:15]}  Rg4+ {[%clk 0:01:07]} 24. hxg4 {[%clk 0:00:16]}  Qxd3 {[%clk 0:01:07]} 25. Be3 {[%clk 0:00:13]}  dxc4 {[%clk 0:01:07]} 0-1


[Site "https://www.chess.com"]

[Event "Titled Tuesday Blitz August 08 Early 2023"]
[White "Movahed, Sina"]
[Black "Willy, Stephen"]
[WhiteFideId "42520835"]
[BlackFideId "30981468"]
[WhiteElo "2977"]
[BlackElo "2498"]
[Result "1-0"]
[Round "1"]
[TimeControl "180+1"]
[Date "2023.08.08"]
[WhiteClock "0:01:59"]
[BlackClock "0:01:17"]
[Board "26"]

1. e4 {[%clk 0:03:00]}  e5 {[%clk 0:02:52]} 2. Nf3 {[%clk 0:03:01]}  Nf6 {[%clk 0:02:51]} 3. Nxe5 {[%clk 0:03:00]}  d6 {[%clk 0:02:51]} 4. Nf3 {[%clk 0:03:01]}  Nxe4 {[%clk 0:02:52]} 5. Nc3 {[%clk 0:03:01]}  Nxc3 {[%clk 0:02:52]} 6. dxc3 {[%clk 0:03:02]}  Be7 {[%clk 0:02:52]} 7. Bf4 {[%clk 0:03:02]}  O-O {[%clk 0:02:51]} 8. Qd2 {[%clk 0:03:02]}  Be6 {[%clk 0:02:49]} 9. Nd4 {[%clk 0:02:58]}  Nc6 {[%clk 0:02:44]} 10. O-O-O {[%clk 0:02:48]}  Bf6 {[%clk 0:02:21]} 11. Nxe6 {[%clk 0:02:44]}  fxe6 {[%clk 0:02:22]} 12. g3 {[%clk 0:02:41]}  Qe8 {[%clk 0:02:15]} 13. h4 {[%clk 0:02:29]}  a5 {[%clk 0:02:06]} 14. Bc4 {[%clk 0:02:17]}  d5 {[%clk 0:01:50]} 15. Bb5 {[%clk 0:02:13]}  Qc8 {[%clk 0:01:46]} 16. Rhe1 {[%clk 0:02:10]}  Na7 {[%clk 0:01:40]} 17. Bd3 {[%clk 0:02:08]}  b5 {[%clk 0:01:36]} 18. Qe2 {[%clk 0:02:07]}  Re8 {[%clk 0:01:35]} 19. Qh5 {[%clk 0:02:06]}  g6 {[%clk 0:01:33]} 20. Bxg6 {[%clk 0:02:02]}  hxg6 {[%clk 0:01:32]} 21. Qxg6+ {[%clk 0:02:03]}  Bg7 {[%clk 0:01:32]} 22. h5 {[%clk 0:02:03]}  Qd7 {[%clk 0:01:21]} 23. h6 {[%clk 0:02:02]}  Nc8 {[%clk 0:01:22]} 24. hxg7 {[%clk 0:01:59]}  Qxg7 {[%clk 0:01:17]} 25. Qxe8+ {[%clk 0:01:59]} 1-0


[Site "https://www.chess.com"]

[Event "Titled Tuesday Blitz August 08 Early 2023"]
[White "Le, Tuan Minh"]
[Black "Domingo Nunez, Alejandro"]
[WhiteFideId "12401153"]
[BlackFideId "22245561"]
[WhiteElo "2968"]
[BlackElo "2496"]
[Result "1/2-1/2"]
[Round "1"]
[TimeControl "180+1"]
[Date "2023.08.08"]
[WhiteClock "0:00:14"]
[BlackClock "0:00:10"]
[Board "28"]

1. d4 {[%clk 0:02:59]}  g6 {[%clk 0:02:59]} 2. e4 {[%clk 0:02:59]}  Bg7 {[%clk 0:02:59]} 3. Bc4 {[%clk 0:02:54]}  c6 {[%clk 0:02:59]} 4. Bb3 {[%clk 0:02:51]}  d5 {[%clk 0:02:59]} 5. e5 {[%clk 0:02:31]}  f6 {[%clk 0:02:59]} 6. exf6 {[%clk 0:02:28]}  Nxf6 {[%clk 0:02:58]} 7. h3 {[%clk 0:02:23]}  O-O {[%clk 0:02:45]} 8. Nf3 {[%clk 0:02:23]}  Qd6 {[%clk 0:01:56]} 9. O-O {[%clk 0:02:14]}  Bf5 {[%clk 0:01:55]} 10. Nc3 {[%clk 0:02:03]}  Nbd7 {[%clk 0:01:54]} 11. Re1 {[%clk 0:02:03]}  Kh8 {[%clk 0:01:31]} 12. Bg5 {[%clk 0:01:13]}  Rae8 {[%clk 0:01:29]} 13. Qc1 {[%clk 0:01:09]}  Ne4 {[%clk 0:01:27]} 14. Bf4 {[%clk 0:01:10]}  e5 {[%clk 0:01:25]} 15. dxe5 {[%clk 0:01:02]}  Nxe5 {[%clk 0:01:25]} 16. Nxe5 {[%clk 0:01:03]}  Bxe5 {[%clk 0:01:25]} 17. Bxe5+ {[%clk 0:01:04]}  Qxe5 {[%clk 0:01:00]} 18. Qh6 {[%clk 0:00:57]}  Qf6 {[%clk 0:00:52]} 19. Nxe4 {[%clk 0:00:50]}  Bxe4 {[%clk 0:00:51]} 20. f3 {[%clk 0:00:50]}  Bf5 {[%clk 0:00:49]} 21. c3 {[%clk 0:00:48]}  Be6 {[%clk 0:00:41]} 22. Re3 {[%clk 0:00:43]}  Qg7 {[%clk 0:00:29]} 23. Qh4 {[%clk 0:00:42]}  Qf6 {[%clk 0:00:17]} 24. Qf2 {[%clk 0:00:42]}  Bd7 {[%clk 0:00:16]} 25. Rae1 {[%clk 0:00:43]}  b6 {[%clk 0:00:14]} 26. Qg3 {[%clk 0:00:39]}  Rxe3 {[%clk 0:00:07]} 27. Rxe3 {[%clk 0:00:40]}  Re8 {[%clk 0:00:07]} 28. Rxe8+ {[%clk 0:00:39]}  Bxe8 {[%clk 0:00:08]} 29. Qc7 {[%clk 0:00:38]}  Qf7 {[%clk 0:00:08]} 30. Qg3 {[%clk 0:00:29]}  Kg7 {[%clk 0:00:07]} 31. Bc2 {[%clk 0:00:28]}  Qe7 {[%clk 0:00:07]} 32. f4 {[%clk 0:00:28]}  Qe2 {[%clk 0:00:05]} 33. Bd3 {[%clk 0:00:28]}  Qe7 {[%clk 0:00:04]} 34. f5 {[%clk 0:00:28]}  Bf7 {[%clk 0:00:05]} 35. h4 {[%clk 0:00:27]}  Qf6 {[%clk 0:00:03]} 36. a4 {[%clk 0:00:24]}  Kh6 {[%clk 0:00:03]} 37. Qf4+ {[%clk 0:00:24]}  Kg7 {[%clk 0:00:03]} 38. g3 {[%clk 0:00:20]}  gxf5 {[%clk 0:00:03]} 39. Bxf5 {[%clk 0:00:21]}  Bg6 {[%clk 0:00:04]} 40. Qc7+ {[%clk 0:00:21]}  Qf7 {[%clk 0:00:04]} 41. Qe5+ {[%clk 0:00:21]}  Qf6 {[%clk 0:00:04]} 42. Qc7+ {[%clk 0:00:21]}  Qf7 {[%clk 0:00:04]} 43. Qxf7+ {[%clk 0:00:22]}  Kxf7 {[%clk 0:00:05]} 44. Bxg6+ {[%clk 0:00:18]}  Kxg6 {[%clk 0:00:05]} 45. g4 {[%clk 0:00:18]}  Kf6 {[%clk 0:00:03]} 46. Kf2 {[%clk 0:00:18]}  Ke5 {[%clk 0:00:03]} 47. Ke3 {[%clk 0:00:19]}  c5 {[%clk 0:00:04]} 48. Kd3 {[%clk 0:00:16]}  a6 {[%clk 0:00:04]} 49. b4 {[%clk 0:00:15]}  cxb4 {[%clk 0:00:02]} 50. cxb4 {[%clk 0:00:16]}  d4 {[%clk 0:00:03]} 51. a5 {[%clk 0:00:13]}  bxa5 {[%clk 0:00:02]} 52. bxa5 {[%clk 0:00:14]}  Kf4 {[%clk 0:00:03]} 53. Kxd4 {[%clk 0:00:13]}  Kxg4 {[%clk 0:00:04]} 54. Kc5 {[%clk 0:00:14]}  Kxh4 {[%clk 0:00:04]} 55. Kb6 {[%clk 0:00:15]}  Kg4 {[%clk 0:00:05]} 56. Kxa6 {[%clk 0:00:16]}  h5 {[%clk 0:00:06]} 57. Ka7 {[%clk 0:00:13]}  h4 {[%clk 0:00:07]} 58. a6 {[%clk 0:00:13]}  h3 {[%clk 0:00:08]} 59. Kb8 {[%clk 0:00:12]}  h2 {[%clk 0:00:08]} 60. a7 {[%clk 0:00:12]}  h1=Q {[%clk 0:00:09]} 61. a8=Q {[%clk 0:00:13]}  Qxa8+ {[%clk 0:00:10]} 62. Kxa8 {[%clk 0:00:14]} 1/2-1/2


[Site "https://www.chess.com"]

[Event "Titled Tuesday Blitz August 08 Early 2023"]
[White "marik_spb"]
[Black "Demidov, Mikhail"]
[BlackFideId "4197143"]
[WhiteElo "2496"]
[BlackElo "2962"]
[Result "0-1"]
[Round "1"]
[TimeControl "180+1"]
[Date "2023.08.08"]
[WhiteClock "0:00:00"]
[BlackClock "0:00:39"]
[Board "29"]

1. d4 {[%clk 0:02:56]}  g6 {[%clk 0:02:57]} 2. c4 {[%clk 0:02:56]}  Bg7 {[%clk 0:02:57]} 3. Nc3 {[%clk 0:02:57]}  d6 {[%clk 0:02:56]} 4. e4 {[%clk 0:02:55]}  e5 {[%clk 0:02:54]} 5. dxe5 {[%clk 0:02:46]}  dxe5 {[%clk 0:02:54]} 6. Qxd8+ {[%clk 0:02:46]}  Kxd8 {[%clk 0:02:55]} 7. Be3 {[%clk 0:02:46]}  Be6 {[%clk 0:02:51]} 8. O-O-O+ {[%clk 0:02:45]}  Nd7 {[%clk 0:02:50]} 9. Nf3 {[%clk 0:02:36]}  f6 {[%clk 0:02:49]} 10. h4 {[%clk 0:02:23]}  h5 {[%clk 0:02:48]} 11. Be2 {[%clk 0:02:21]}  c6 {[%clk 0:02:47]} 12. Rd6 {[%clk 0:02:12]}  Ke7 {[%clk 0:02:47]} 13. Rhd1 {[%clk 0:02:11]}  Bh6 {[%clk 0:02:47]} 14. Bxh6 {[%clk 0:02:03]}  Nxh6 {[%clk 0:02:48]} 15. Ne1 {[%clk 0:01:59]}  Nf7 {[%clk 0:02:41]} 16. R6d2 {[%clk 0:01:59]}  Rhd8 {[%clk 0:02:34]} 17. Nc2 {[%clk 0:01:56]}  Nc5 {[%clk 0:02:27]} 18. Rxd8 {[%clk 0:01:55]}  Nxd8 {[%clk 0:02:27]} 19. b4 {[%clk 0:01:54]}  Nd7 {[%clk 0:02:27]} 20. Kb2 {[%clk 0:01:42]}  Nf7 {[%clk 0:02:24]} 21. g3 {[%clk 0:01:36]}  Rh8 {[%clk 0:02:10]} 22. Ne3 {[%clk 0:01:29]}  f5 {[%clk 0:02:07]} 23. c5 {[%clk 0:01:21]}  Nf6 {[%clk 0:02:06]} 24. exf5 {[%clk 0:01:05]}  gxf5 {[%clk 0:02:07]} 25. Nc4 {[%clk 0:01:02]}  Ng4 {[%clk 0:02:00]} 26. Bxg4 {[%clk 0:00:56]}  hxg4 {[%clk 0:02:00]} 27. Nd6 {[%clk 0:00:50]}  Nxd6 {[%clk 0:01:59]} 28. Rxd6 {[%clk 0:00:49]}  Rf8 {[%clk 0:01:59]} 29. a4 {[%clk 0:00:40]}  f4 {[%clk 0:01:58]} 30. b5 {[%clk 0:00:40]}  fxg3 {[%clk 0:01:54]} 31. fxg3 {[%clk 0:00:41]}  cxb5 {[%clk 0:01:46]} 32. axb5 {[%clk 0:00:40]}  Rf2+ {[%clk 0:01:44]} 33. Kc1 {[%clk 0:00:39]}  Rf3 {[%clk 0:01:44]} 34. Ne4 {[%clk 0:00:15]}  Bf5 {[%clk 0:01:43]} 35. Rd5 {[%clk 0:00:12]}  Ke6 {[%clk 0:00:59]} 36. Rd6+ {[%clk 0:00:13]}  Ke7 {[%clk 0:00:59]} 37. Rd5 {[%clk 0:00:13]}  Bxe4 {[%clk 0:01:00]} 38. Rxe5+ {[%clk 0:00:13]}  Kf6 {[%clk 0:01:01]} 39. Rxe4 {[%clk 0:00:14]}  Rxg3 {[%clk 0:01:02]} 40. Kd2 {[%clk 0:00:14]}  Rg2+ {[%clk 0:00:58]} 41. Ke3 {[%clk 0:00:14]}  Rg1 {[%clk 0:00:58]} 42. Ra4 {[%clk 0:00:14]}  Rb1 {[%clk 0:00:56]} 43. Rxa7 {[%clk 0:00:13]}  Rxb5 {[%clk 0:00:56]} 44. Kf4 {[%clk 0:00:14]}  Rb4+ {[%clk 0:00:56]} 45. Kg3 {[%clk 0:00:14]}  Kf5 {[%clk 0:00:57]} 46. h5 {[%clk 0:00:12]}  Kg5 {[%clk 0:00:56]} 47. Ra8 {[%clk 0:00:09]}  Rb3+ {[%clk 0:00:54]} 48. Kg2 {[%clk 0:00:09]}  Kxh5 {[%clk 0:00:54]} 49. Rh8+ {[%clk 0:00:09]}  Kg5 {[%clk 0:00:54]} 50. Rg8+ {[%clk 0:00:10]}  Kf5 {[%clk 0:00:55]} 51. Rf8+ {[%clk 0:00:11]}  Ke6 {[%clk 0:00:55]} 52. Rg8 {[%clk 0:00:11]}  g3 {[%clk 0:00:52]} 53. Rg5 {[%clk 0:00:08]}  Kd7 {[%clk 0:00:52]} 54. Rg6 {[%clk 0:00:08]}  Kc7 {[%clk 0:00:52]} 55. Kh3 {[%clk 0:00:06]}  Rc3 {[%clk 0:00:52]} 56. Rg5 {[%clk 0:00:05]}  Kc6 {[%clk 0:00:52]} 57. Kg2 {[%clk 0:00:05]}  Rxc5 {[%clk 0:00:49]} 58. Rxg3 {[%clk 0:00:05]}  b5 {[%clk 0:00:49]} 59. Kf2 {[%clk 0:00:05]}  Re5 {[%clk 0:00:49]} 60. Rc3+ {[%clk 0:00:05]}  Kb6 {[%clk 0:00:46]} 61. Rc1 {[%clk 0:00:03]}  b4 {[%clk 0:00:46]} 62. Kf3 {[%clk 0:00:02]}  Kb5 {[%clk 0:00:46]} 63. Rb1 {[%clk 0:00:03]}  Kc4 {[%clk 0:00:45]} 64. Rc1+ {[%clk 0:00:04]}  Kd3 {[%clk 0:00:44]} 65. Rc8 {[%clk 0:00:02]}  b3 {[%clk 0:00:44]} 66. Rd8+ {[%clk 0:00:03]}  Kc2 {[%clk 0:00:44]} 67. Kf4 {[%clk 0:00:04]}  Re7 {[%clk 0:00:44]} 68. Rc8+ {[%clk 0:00:03]}  Kb1 {[%clk 0:00:43]} 69. Rb8 {[%clk 0:00:03]}  b2 {[%clk 0:00:43]} 70. Kf3 {[%clk 0:00:04]}  Rc7 {[%clk 0:00:42]} 71. Ke2 {[%clk 0:00:04]}  Kc2 {[%clk 0:00:43]} 72. Rb4 {[%clk 0:00:02]}  b1=Q {[%clk 0:00:40]} 73. Rc4+ {[%clk 0:00:00]}  Rxc4 {[%clk 0:00:39]} 0-1


[Site "https://www.chess.com"]

[Event "Titled Tuesday Blitz August 08 Early 2023"]
[White "Gledura, Benjamin"]
[Black "Glavina, Pablo"]
[WhiteFideId "712779"]
[BlackFideId "100234"]
[WhiteElo "2956"]
[BlackElo "2495"]
[Result "1/2-1/2"]
[Round "1"]
[TimeControl "180+1"]
[Date "2023.08.08"]
[WhiteClock "0:00:00"]
[BlackClock "0:00:14"]
[Board "30"]

1. e4 {[%clk 0:03:00]}  c6 {[%clk 0:02:59]} 2. Nc3 {[%clk 0:03:00]}  d5 {[%clk 0:03:00]} 3. d3 {[%clk 0:03:00]}  e5 {[%clk 0:02:59]} 4. g3 {[%clk 0:02:59]}  Nf6 {[%clk 0:02:58]} 5. Bg2 {[%clk 0:02:59]}  dxe4 {[%clk 0:02:52]} 6. Nxe4 {[%clk 0:02:58]}  Nxe4 {[%clk 0:02:51]} 7. Bxe4 {[%clk 0:02:59]}  Bc5 {[%clk 0:02:51]} 8. Qh5 {[%clk 0:02:56]}  Nd7 {[%clk 0:02:48]} 9. Bg5 {[%clk 0:02:54]}  Nf6 {[%clk 0:02:45]} 10. Bxf6 {[%clk 0:02:52]}  Qxf6 {[%clk 0:02:44]} 11. Nf3 {[%clk 0:02:53]}  g6 {[%clk 0:02:39]} 12. Qxe5+ {[%clk 0:02:51]}  Qxe5 {[%clk 0:02:36]} 13. Nxe5 {[%clk 0:02:52]}  Be6 {[%clk 0:02:35]} 14. c3 {[%clk 0:02:51]}  Bd6 {[%clk 0:02:29]} 15. f4 {[%clk 0:02:46]}  f6 {[%clk 0:02:25]} 16. Nf3 {[%clk 0:02:36]}  f5 {[%clk 0:02:04]} 17. Nd4 {[%clk 0:02:35]}  Bf7 {[%clk 0:01:57]} 18. Bf3 {[%clk 0:02:35]}  O-O-O {[%clk 0:01:54]} 19. O-O-O {[%clk 0:02:28]}  Rhe8 {[%clk 0:01:52]} 20. Nb3 {[%clk 0:02:20]}  Re3 {[%clk 0:01:45]} 21. Rhf1 {[%clk 0:02:17]}  Bc7 {[%clk 0:01:40]} 22. d4 {[%clk 0:02:14]}  Bc4 {[%clk 0:01:37]} 23. Rf2 {[%clk 0:02:14]}  Rde8 {[%clk 0:01:35]} 24. Nd2 {[%clk 0:02:05]}  Bxa2 {[%clk 0:01:22]} 25. b3 {[%clk 0:02:04]}  Bxb3 {[%clk 0:01:21]} 26. Nxb3 {[%clk 0:02:01]}  Rxc3+ {[%clk 0:01:20]} 27. Kb2 {[%clk 0:02:02]}  Ree3 {[%clk 0:01:17]} 28. Nd2 {[%clk 0:02:01]}  Bd6 {[%clk 0:01:06]} 29. Bg2 {[%clk 0:01:54]}  Rcd3 {[%clk 0:01:00]} 30. Bf1 {[%clk 0:01:51]}  Rxd4 {[%clk 0:00:58]} 31. Kc2 {[%clk 0:01:44]}  Bb4 {[%clk 0:00:53]} 32. Nb1 {[%clk 0:01:41]}  Rxd1 {[%clk 0:00:48]} 33. Kxd1 {[%clk 0:01:42]}  Re1+ {[%clk 0:00:44]} 34. Kc2 {[%clk 0:01:41]}  a5 {[%clk 0:00:44]} 35. Bc4 {[%clk 0:01:39]}  b5 {[%clk 0:00:44]} 36. Bg8 {[%clk 0:01:38]}  Re7 {[%clk 0:00:44]} 37. Nc3 {[%clk 0:01:30]}  a4 {[%clk 0:00:42]} 38. Re2 {[%clk 0:01:29]}  Rg7 {[%clk 0:00:39]} 39. Re8+ {[%clk 0:01:21]}  Kc7 {[%clk 0:00:39]} 40. Be6 {[%clk 0:01:20]}  Kb6 {[%clk 0:00:34]} 41. h3 {[%clk 0:01:15]}  Kc5 {[%clk 0:00:31]} 42. g4 {[%clk 0:01:15]}  fxg4 {[%clk 0:00:31]} 43. hxg4 {[%clk 0:01:15]}  Kb6 {[%clk 0:00:19]} 44. Ne4 {[%clk 0:01:13]}  Re7 {[%clk 0:00:17]} 45. Rxe7 {[%clk 0:01:11]}  Bxe7 {[%clk 0:00:18]} 46. f5 {[%clk 0:01:11]}  gxf5 {[%clk 0:00:19]} 47. gxf5 {[%clk 0:01:11]}  b4 {[%clk 0:00:19]} 48. f6 {[%clk 0:01:11]}  Bf8 {[%clk 0:00:19]} 49. Bc4 {[%clk 0:01:09]}  c5 {[%clk 0:00:13]} 50. Ng5 {[%clk 0:01:08]}  Kc6 {[%clk 0:00:11]} 51. Nxh7 {[%clk 0:01:07]}  Bd6 {[%clk 0:00:11]} 52. f7 {[%clk 0:01:07]}  Kd7 {[%clk 0:00:11]} 53. f8=Q {[%clk 0:01:05]}  Bxf8 {[%clk 0:00:11]} 54. Nxf8+ {[%clk 0:01:05]}  Kd6 {[%clk 0:00:12]} 55. Ng6 {[%clk 0:01:02]}  Kc6 {[%clk 0:00:10]} 56. Nf4 {[%clk 0:01:02]}  Kd6 {[%clk 0:00:10]} 57. Nd3 {[%clk 0:01:03]}  Kc6 {[%clk 0:00:10]} 58. Kd2 {[%clk 0:01:02]}  Kb6 {[%clk 0:00:10]} 59. Ke3 {[%clk 0:01:02]}  b3 {[%clk 0:00:08]} 60. Kd2 {[%clk 0:01:00]}  Kc6 {[%clk 0:00:05]} 61. Kc3 {[%clk 0:01:01]}  Kb6 {[%clk 0:00:05]} 62. Kb2 {[%clk 0:01:00]}  Kc6 {[%clk 0:00:02]} 63. Ka3 {[%clk 0:01:00]}  Kd6 {[%clk 0:00:02]} 64. Kxa4 {[%clk 0:01:00]}  b2 {[%clk 0:00:02]} 65. Nxb2 {[%clk 0:01:00]}  Ke5 {[%clk 0:00:03]} 66. Kb5 {[%clk 0:00:59]}  Kd4 {[%clk 0:00:04]} 67. Na4 {[%clk 0:00:58]}  Ke5 {[%clk 0:00:05]} 68. Kxc5 {[%clk 0:00:57]}  Ke4 {[%clk 0:00:06]} 69. Nc3+ {[%clk 0:00:56]}  Ke5 {[%clk 0:00:07]} 70. Bd5 {[%clk 0:00:55]}  Kf6 {[%clk 0:00:06]} 71. Kd6 {[%clk 0:00:54]}  Kg7 {[%clk 0:00:06]} 72. Ke6 {[%clk 0:00:53]}  Kf8 {[%clk 0:00:06]} 73. Ne4 {[%clk 0:00:48]}  Kg8 {[%clk 0:00:06]} 74. Kf6+ {[%clk 0:00:47]}  Kh8 {[%clk 0:00:06]} 75. Kf7 {[%clk 0:00:41]}  Kh7 {[%clk 0:00:06]} 76. Be6 {[%clk 0:00:41]}  Kh8 {[%clk 0:00:07]} 77. Nd6 {[%clk 0:00:31]}  Kh7 {[%clk 0:00:07]} 78. Nf5 {[%clk 0:00:30]}  Kh8 {[%clk 0:00:06]} 79. Ng7 {[%clk 0:00:18]}  Kh7 {[%clk 0:00:06]} 80. Kf6 {[%clk 0:00:18]}  Kh8 {[%clk 0:00:07]} 81. Bf5 {[%clk 0:00:14]}  Kg8 {[%clk 0:00:08]} 82. Kg6 {[%clk 0:00:13]}  Kh8 {[%clk 0:00:08]} 83. Bd7 {[%clk 0:00:10]}  Kg8 {[%clk 0:00:09]} 84. Bc6 {[%clk 0:00:07]}  Kh8 {[%clk 0:00:10]} 85. Nf5 {[%clk 0:00:07]}  Kg8 {[%clk 0:00:11]} 86. Nh4 {[%clk 0:00:02]}  Kh8 {[%clk 0:00:12]} 87. Kh6 {[%clk 0:00:02]}  Kg8 {[%clk 0:00:13]} 88. Be8 {[%clk 0:00:01]}  Kh8 {[%clk 0:00:14]} 89. Ng6+ {[%clk 0:00:00]}  Kg8 {[%clk 0:00:14]} 1/2-1/2


[Site "https://www.chess.com"]